Cogmind - Beta 17 @@@ ROGUE MODE // 2026.08.10 @ 14:00:41 Player: OBLIQUE Result: Destroyed by P-80 Master with Gamma Rifle Performance ------------- Evolutions (8) 4000 Regions Visited (25) 5000 Robots Destroyed (19) 95 Value Destroyed (576) 576 Prototype IDs (63) 1260 Alien Tech Used (5) 1000 Bonus (12355) 12355 TOTAL SCORE: 24286 Bonus ------- Follower Combat Kills 4021 Hunted by Unchained 500 Registered with UFD 300 Met Optimus in HQ 500 Met Imprinter 300 Met Zhirov 300 Met Warlord at Base 500 MAIN.C Attacked Warlord 500 Used Core Reset Matrix 3000 Hacked Protovariant 500 Met Sigix 2000 Friendly Fire -66 Cogmind --------- Core Integrity 0/1450 Matter 260/300 Energy 55/100 System Corruption 14% Temperature Cool (0) Movement Core (150) Ox2 Location -2/Protoforge Parts ------- > --- POWER (1) -------- (None) > --- PROPULSION (5) --- (None) > --- UTILITY (15) ----- Enhanced Optical Array Experimental Terrain Scan Processor Advanced Hacking Suite Advanced Hacking Suite Advanced Hacking Suite Experimental System Shield Experimental System Shield Experimental System Shield Ghost Barrier > --- WEAPON (2) ------- Concept Variable Chargecaster > --- INVENTORY (5) ---- Advanced Energy Well (47) Amulet of Y3-NDR Amulet of Y3-NDR Peak State ------------ > --- POWER ------------ Light Particle Reactor > --- PROPULSION ------- Advanced Surge Thruster Flightbrick > --- UTILITY ---------- Enhanced Optical Array Advanced Sensor Array Experimental Signal Interpreter Advanced Terrain Scanner Experimental Terrain Scan Processor Makeshift Hacking Suite Advanced Hacking Suite Advanced Hacking Suite Advanced Hacking Suite Advanced Hacking Suite Experimental System Shield Experimental System Shield Experimental System Shield Ghost Barrier Amulet of Y3-NDR Amulet of Y3-NDR > --- WEAPON ----------- Sigix Broadsword > --- INVENTORY -------- Advanced Surge Thruster Advanced Energy Well Experimental System Shield Experimental System Shield Transdimensional Reconstructor [Rating: 191] Favorites ----------- Power Ion Engine Engine Ion Engine Power Core Nuclear Core Reactor Light Particle Reactor Propulsion Light Treads Treads Light Treads Flight Unit Flightbrick Utility Advanced Hacking Suite Device Advanced Sensor Array Storage Small Storage Unit Processor Experimental Signal Interpreter Hackware Advanced Hacking Suite Protection Makeshift Light Armor Plating Weapon Battle Cannon Energy Gun Small Laser Ballistic Gun Subdweller Machine Gun Ballistic Cannon Battle Cannon Special Weapon Improved Remote Datajack Slashing Weapon Scythe Piercing Weapon CR-A16's Pointy Stick Build | -11 -10 -10 -10 -8 -8 -6 -6 -6 -6 -5 -5 -5 -5 -5 -4 -4 -4 -4 -4 -3 -3 -3 -2 -2 -2 ------- Run | Yrd Mat Min Sub Rec Scr Fac Low Low Zio Pro Fac Upp Upp Zhi Pro Fac Upp Upp War Pro Res Qua Res Tes Frg Slots Evolved 16 | . . . . . . 8 . . . . 2 . . . . 2 . . . . 2 . 2 . . Power . | . . . . . . . . . . . . . . . . . . . . . . . . . . Propulsion 3 | . . . . . . 2 . . . . 1 . . . . . . . . . . . . . . Utility 13 | . . . . . . 6 . . . . 1 . . . . 2 . . . . 2 . 2 . . Weapon . | . . . . . . . . . . . . . . . . . . . . . . . . . . Parts Attached 81 | 7 2 . 9 1 5 16 . 1 2 3 3 3 . 2 . 5 1 1 5 . 6 2 3 1 3 Power 11 | 2 1 . . . . 3 . . . . . . . . . 1 . 1 . . 1 . . . 2 Engine 4 | 2 1 . . . . 1 . . . . . . . . . . . . . . . . . . . Core 3 | . . . . . . 2 . . . . . . . . . 1 . . . . . . . . . Reactor 4 | . . . . . . . . . . . . . . . . . . 1 . . 1 . . . 2 Propulsion 8 | 2 . . . 1 1 1 . . . . . . . . . 1 . . 1 . . . . 1 . Treads 4 | 2 . . . 1 1 . . . . . . . . . . . . . . . . . . . . Leg . | . . . . . . . . . . . . . . . . . . . . . . . . . . Wheel . | . . . . . . . . . . . . . . . . . . . . . . . . . . Hover . | . . . . . . . . . . . . . . . . . . . . . . . . . . Flight 4 | . . . . . . 1 . . . . . . . . . 1 . . 1 . . . . 1 . Utility 43 | 1 1 . 2 . 1 11 . 1 1 3 3 2 . 2 . 3 1 . 3 . 4 1 3 . . Device 13 | . 1 . 1 . . 5 . 1 . . 2 . . 1 . . . . 1 . . 1 . . . Storage 5 | 1 . . . . 1 1 . . . . . . . 1 . . . . . . . . 1 . . Processor 7 | . . . . . . 4 . . . . 1 . . . . 1 . . 1 . . . . . . Hackware 16 | . . . . . . 1 . . 1 2 . 2 . . . 2 1 . 1 . 4 . 2 . . Protection 2 | . . . 1 . . . . . . 1 . . . . . . . . . . . . . . . Artifact . | . . . . . . . . . . . . . . . . . . . . . . . . . . Weapon 19 | 2 . . 7 . 3 1 . . 1 . . 1 . . . . . . 1 . 1 1 . . 1 Energy Gun 2 | 1 . . . . . . . . . . . . . . . . . . . . . . . . 1 Energy Cannon . | . . . . . . . . . . . . . . . . . . . . . . . . . . Ballistic Gun 4 | 1 . . 3 . . . . . . . . . . . . . . . . . . . . . . Ballistic Cannon 4 | . . . 4 . . . . . . . . . . . . . . . . . . . . . . Launcher . | . . . . . . . . . . . . . . . . . . . . . . . . . . Special Weapon 5 | . . . . . 3 . . . . . . 1 . . . . . . 1 . . . . . . Impact Weapon . | . . . . . . . . . . . . . . . . . . . . . . . . . . Slashing Weapon 3 | . . . . . . 1 . . . . . . . . . . . . . . 1 1 . . . Piercing Weapon 1 | . . . . . . . . . 1 . . . . . . . . . . . . . . . . Special Melee Weapon . | . . . . . . . . . . . . . . . . . . . . . . . . . . Unidentified Prototypes 24 | . . . 1 . 1 2 . 1 . 1 1 . . 3 . 1 . . 4 . 1 3 1 . 4 Parts Lost 14 | . . . 1 . . . . . . . 2 . . . . . . . . . . . 1 1 9 Power 1 | . . . . . . . . . . . . . . . . . . . . . . . . . 1 Propulsion 3 | . . . . . . . . . . . . . . . . . . . . . . . . 1 2 Utility 5 | . . . . . . . . . . . 1 . . . . . . . . . . . . . 4 Weapon 5 | . . . 1 . . . . . . . 1 . . . . . . . . . . . 1 . 2 Highest Loss Streak 7 | . . . 1 . . . . . . . 2 . . . . . . . . . . . 1 1 7 To Critical Strikes . | . . . . . . . . . . . . . . . . . . . . . . . . . . Average Backups 3 | 1 3 6 6 3 2 3 2 3 3 3 3 3 4 4 4 3 4 4 5 5 4 3 2 1 1 Power . | . 1 2 . . . . . . . . . . . . . . . . . . . . . . . Propulsion . | . . . . 1 . . . . . . . . . . . . 1 1 1 1 1 . 1 . . Utility 1 | . . 2 2 1 1 . 1 2 2 2 2 2 3 2 2 1 1 1 2 2 2 1 1 1 1 Weapon . | . 1 2 1 . . 1 . . . . . . . . . . . . . . . . . . . Tool/Special . | . . . . . . . . . . . . . . . . . . . . . . . . . . Unused Backups 18 | . . . 4 1 . . 2 . 1 . 1 2 . 2 1 . . . . . 1 2 1 . . Power . | . . . . . . . . . . . . . . . . . . . . . . . . . . Propulsion 1 | . . . . . . . . . . . . . . . . . . . . . . . 1 . . Utility 14 | . . . 2 1 . . 2 . 1 . . 2 . 2 1 . . . . . 1 2 . . . Weapon 2 | . . . 2 . . . . . . . . . . . . . . . . . . . . . . Tool/Special 1 | . . . . . . . . . . . 1 . . . . . . . . . . . . . . Average Slot Usage (%) 83 | . 99 100 99 100 77 57 71 72 74 82 69 70 80 80 80 83 86 86 86 86 84 86 81 84 76 Engine 8 | . 14 14 14 14 14 1 5 5 5 5 5 5 5 5 5 3 4 1 . . . . . . . Treads 14 | . 28 28 28 28 28 . . . . . . . . . . . . . . . . . . . . Flight 2 | . . . . . . 4 5 5 5 5 5 5 5 5 5 7 9 9 9 9 8 8 7 7 5 Device 12 | . 13 14 13 14 . 19 22 22 22 21 17 15 15 15 15 13 13 13 13 13 12 14 14 15 12 Storage 8 | . 14 14 14 14 14 . 5 5 5 5 5 5 5 5 5 4 4 4 2 . . . . . . Processor 6 | . . . . . . 14 16 16 16 16 15 15 15 15 15 13 13 13 13 13 12 12 11 11 10 Hackware 9 | . . . . . . 4 5 5 7 15 15 18 25 25 25 30 31 31 32 36 39 37 35 42 40 Ballistic Gun 2 | . 14 14 9 . . . . . . . . . . . . . . . . . . . . . . Ballistic Cannon 9 | . . . 17 28 18 . . . . . . . . . . . . . . . . . . . . Special Weapon 2 | . . . . . 1 . 4 5 5 5 2 1 5 5 5 4 4 4 4 4 4 4 3 . . Piercing Weapon 1 | . . . . . . . . . 2 5 5 5 5 5 5 4 4 4 4 4 2 . . . . Peak Build Rating 191 | 6 7 7 15 15 19 78 81 87 92 106 108 118 118 123 120 145 143 145 153 151 172 191 184 178 178 Average Rating 61 | 4 6 7 12 15 12 71 80 86 89 98 102 108 118 118 119 137 143 144 146 151 166 173 175 178 159 On Entrance 96 | . 6 7 7 15 15 19 78 80 87 92 101 102 118 118 119 120 143 143 145 151 151 172 166 178 178 Avg Prop Armor Cover (%) 4 | . . . . . . . . . . . . . . . . 3 3 3 3 . . . . . 42 Naked Turns . | . . . . . . . . . . . . . . . . . . . . . . . . . . Heaviest Build 28 | 13 14 14 21 17 28 22 24 24 24 24 24 24 24 24 24 24 24 24 23 22 24 25 25 21 21 Greatest Support 48 | 40 40 40 40 40 48 24 24 24 24 24 24 24 24 24 24 28 28 28 28 30 29 31 30 30 31 Greatest Overweight (x) 2 | . . . . . . . . . . . . . . . . . . . . . . . . . 2 Average Overweight (x) . | . . . . . . . . . . . . . . . . . . . . . . . . . . Largest Inventory Capacity 15 | 8 8 8 8 8 15 15 5 5 5 5 5 5 5 5 5 5 5 5 5 5 5 5 5 5 5 Average Capacity 6 | 6 8 8 8 8 8 5 5 5 5 5 5 5 5 5 5 5 5 5 5 5 5 5 5 5 5 Most Carried 15 | 2 6 6 8 8 15 15 5 5 5 5 5 5 5 5 5 5 5 5 5 5 5 5 5 4 5 Average Carried 5 | 1 3 6 7 7 5 5 4 5 4 4 5 4 5 4 5 4 5 4 4 5 4 4 4 3 3 Final Capacity 15 | 8 8 8 8 8 15 5 5 5 5 5 5 5 5 5 5 5 5 5 5 5 5 5 5 5 5 Final Carried 15 | 2 6 6 8 8 15 5 5 5 5 5 5 5 5 5 5 5 5 5 5 5 5 5 4 3 3 Class Distribution -------------------- 53% | Mutant 23% | Wizard-Scout 8% | Hacker-Scout 7% | Scout 7% | Ninja Dominant Class ---------------- Mutant | -10/Materials Mutant | -10/Mines Mutant | -10/Subcaves Mutant | -8/Recycling Mutant | -8/Scraptown Ninja | -6/Factory Ninja | -6/Lower Caves Scout | -6/Lower Caves Scout | -6/Zion Hacker-Scout | -5/Proximity Caves Hacker-Scout | -5/Factory Hacker-Scout | -5/Upper Caves Wizard-Scout | -5/Upper Caves Wizard-Scout | -5/Zhirov Wizard-Scout | -4/Proximity Caves Wizard-Scout | -4/Factory Wizard-Scout | -4/Upper Caves Wizard-Scout | -4/Upper Caves Wizard-Scout | -4/Warlord Wizard-Scout | -3/Proximity Caves Wizard-Scout | -3/Research Wizard-Scout | -3/Quarantine Wizard-Scout | -2/Research Wizard-Scout | -2/Testing Wizard-Scout | -2/Protoforge Resources | -11 -10 -10 -10 -8 -8 -6 -6 -6 -6 -5 -5 -5 -5 -5 -4 -4 -4 -4 -4 -3 -3 -3 -2 -2 -2 ----------- Run | Yrd Mat Min Sub Rec Scr Fac Low Low Zio Pro Fac Upp Upp Zhi Pro Fac Upp Upp War Pro Res Qua Res Tes Frg Matter Collected 2014 | 215 114 . 369 100 35 159 40 30 20 50 35 86 10 . 75 102 45 10 . 122 60 . 322 2 13 Remotely . | . . . . . . . . . . . . . . . . . . . . . . . . . . Salvage Created 789 | . 105 . 167 164 . 181 . . . . . . . . . . . . . . . . 172 . . Parts 47 | . 10 . 15 9 . 6 . . . . . . . . . . . . . . . . 7 . . Haulers Intercepted . | . . . . . . . . . . . . . . . . . . . . . . . . . . Recyclers Shooed . | . . . . . . . . . . . . . . . . . . . . . . . . . . Parts Field Recycled . | . . . . . . . . . . . . . . . . . . . . . . . . . . Retrieved Matter . | . . . . . . . . . . . . . . . . . . . . . . . . . . Parts Self-Destructed 110 | . . . 14 . . . . 3 . 9 . 11 7 . 9 . 14 43 . . . . . . . Prevented 63 | . . . . . . . . . . 6 . 24 1 . 4 . 1 18 . 9 . . . . . Parts Restored . | . . . . . . . . . . . . . . . . . . . . . . . . . . Kills | -11 -10 -10 -10 -8 -8 -6 -6 -6 -6 -5 -5 -5 -5 -5 -4 -4 -4 -4 -4 -3 -3 -3 -2 -2 -2 ------- Run | Yrd Mat Min Sub Rec Scr Fac Low Low Zio Pro Fac Upp Upp Zhi Pro Fac Upp Upp War Pro Res Qua Res Tes Frg Combat Hostiles Destroyed 9 | . 2 . 5 2 . . . . . . . . . . . . . . . . . . . . . Guns 5 | . 2 . 3 . . . . . . . . . . . . . . . . . . . . . . Cannons 4 | . . . 2 2 . . . . . . . . . . . . . . . . . . . . . Classes Destroyed 9 | . 3 . 3 2 . 1 . . . . . . . . . . . . . . . . . . . Worker 1 | . 1 . . . . . . . . . . . . . . . . . . . . . . . . Tunneler 2 | . . . . . . 1 . . . . . . . . . . . . . . . . 1 . . Recycler 3 | . . . . 1 . 1 . . . . . . . . . . . . . . . . 1 . . Turret 2 | . . . 2 . . . . . . . . . . . . . . . . . . . . . . Watcher 2 | . 2 . . . . . . . . . . . . . . . . . . . . . . . . Swarmer 2 | . . . 2 . . . . . . . . . . . . . . . . . . . . . . Grunt 3 | . 2 . . 1 . . . . . . . . . . . . . . . . . . . . . Hunter 1 | . . . . 1 . . . . . . . . . . . . . . . . . . . . . Subdweller 3 | . . . 3 . . . . . . . . . . . . . . . . . . . . . . Best Kill Streak 4 | . 1 . 4 2 . 1 . . . . . . . . . . . . . . . . 1 . . Combat Bots Only 2 | . 1 . 2 2 . . . . . . . . . . . . . . . . . . . . . Max Kills in Single Turn 1 | . 1 . 1 1 . 1 . . . . . . . . . . . . . . . . 1 . . Gunslinging . | . . . . . . . . . . . . . . . . . . . . . . . . . . Exploded . | . . . . . . . . . . . . . . . . . . . . . . . . . . Melee . | . . . . . . . . . . . . . . . . . . . . . . . . . . Uniques/NPCs Destroyed . | . . . . . . . . . . . . . . . . . . . . . . . . . . Combat | -11 -10 -10 -10 -8 -8 -6 -6 -6 -6 -5 -5 -5 -5 -5 -4 -4 -4 -4 -4 -3 -3 -3 -2 -2 -2 -------- Run | Yrd Mat Min Sub Rec Scr Fac Low Low Zio Pro Fac Upp Upp Zhi Pro Fac Upp Upp War Pro Res Qua Res Tes Frg Hostile Shots Fired 322 | . 10 . 31 19 . 9 . . . . . . 6 . . . . . . 16 . 18 13 18 182 Missed 136 | . 2 . 10 5 . 3 . . . . . . 2 . . . . . . 9 . 11 5 9 80 Hits 186 | . 8 . 21 14 . 6 . . . . . . 4 . . . . . . 7 . 7 8 9 102 Melee 1 | . . . . 1 . . . . . . . . . . . . . . . . . . . . . Projectile 185 | . 8 . 21 13 . 6 . . . . . . 4 . . . . . . 7 . 7 8 9 102 AOE 2 | . . . 1 . . . . . . . . . . . . . . . . . . . 1 . . Critical Strikes 9 | . 1 . . . . . . . . . . . . . . . . . . . . . . 1 7 Part Disruptions 1 | . . . . . . . . . . . . . . . . . . . . . . . . . 1 Damage Taken 4654 | . 142 . 338 245 . 47 . . . . 144 . 104 . . . . . . 172 . 174 230 139 2919 Core 1654 | . 23 . 60 37 . 5 . . . . . . . . . . . . . 17 . 44 28 47 1393 Absorbed by Shields . | . . . . . . . . . . . . . . . . . . . . . . . . . . Regen/Repaired (Parts) 1 | . . . . . . . . . . . . . . . . . . . 1 . . . . . . Core Remaining (%) 89 | 100 . . . . 52 . . . . 99 . . . . 100 . . . . 98 . 87 . . . Volleys Fired 96 | . 11 . 33 9 . . . . . . . . . . . 7 4 . 6 . . 18 8 . . Largest 2 | . 2 . 2 2 . . . . . . . . . . . 1 1 . 1 . . 1 1 . . Hottest 66 | . 60 . 66 66 . . . . . . . . . . . 7 7 . 7 . . 7 7 . . Shots Fired 141 | . 22 . 58 18 . . . . . . . . . . . 7 4 . 6 . . 18 8 . . Gun 39 | . 22 . 17 . . . . . . . . . . . . . . . . . . . . . . Cannon 59 | . . . 41 18 . . . . . . . . . . . . . . . . . . . . . Launcher . | . . . . . . . . . . . . . . . . . . . . . . . . . . Special 43 | . . . . . . . . . . . . . . . . 7 4 . 6 . . 18 8 . . Kinetic 87 | . 11 . 58 18 . . . . . . . . . . . . . . . . . . . . . Thermal 11 | . 11 . . . . . . . . . . . . . . . . . . . . . . . . Explosive . | . . . . . . . . . . . . . . . . . . . . . . . . . . Electromagnetic . | . . . . . . . . . . . . . . . . . . . . . . . . . . Robot Hit Streak 13 | . 9 . 13 3 . . . . . . . . . . . 3 7 . 10 . . 8 3 . . Robot Miss Streak 8 | . 1 . 4 4 . . . . . . . . . . . 8 . . 1 . . 1 2 . . Penetration Max . | . . . . . . . . . . . . . . . . . . . . . . . . . . Secondary Targets . | . . . . . . . . . . . . . . . . . . . . . . . . . . Shots Hit Robots 81 | . 19 . 16 6 . 7 . . . . . . . . . 3 4 . 5 . . 13 6 2 . Core Hits 22 | . 8 . 7 4 . 1 . . . . . . . . . . . . . . . . 1 1 . Critical Kills . | . . . . . . . . . . . . . . . . . . . . . . . . . . Critical Parts Destroyed . | . . . . . . . . . . . . . . . . . . . . . . . . . . Critical Strikes 1 | . . . 1 . . . . . . . . . . . . . . . . . . . . . . Blast 1 | . . . 1 . . . . . . . . . . . . . . . . . . . . . . Melee Attacks 77 | . . . . . . 21 . 2 1 7 14 . 2 . . 6 1 . . 2 . 7 2 5 7 Impact . | . . . . . . . . . . . . . . . . . . . . . . . . . . Slashing 45 | . . . . . . 21 . 2 1 . . . . . . . . . . . . 7 2 5 7 Piercing 32 | . . . . . . . . . . 7 14 . 2 . . 6 1 . . 2 . . . . . Sneak Attacks 5 | . . . . . . 3 . . . . . . . . . . . . . . . . 2 . . Combat Hostiles . | . . . . . . . . . . . . . . . . . . . . . . . . . . Follow-up Attacks . | . . . . . . . . . . . . . . . . . . . . . . . . . . Damage Inflicted 1393 | . 232 . 408 173 . 334 . . . . . . . . . . . . . . . . 159 87 . Guns 478 | . 226 . 252 . . . . . . . . . . . . . . . . . . . . . . Cannons 329 | . . . 156 173 . . . . . . . . . . . . . . . . . . . . . Explosions . | . . . . . . . . . . . . . . . . . . . . . . . . . . Melee 580 | . . . . . . 334 . . . . . . . . . . . . . . . . 159 87 . Ramming 6 | . 6 . . . . . . . . . . . . . . . . . . . . . . . . Kinetic 708 | . 127 . 408 173 . . . . . . . . . . . . . . . . . . . . . Thermal 99 | . 99 . . . . . . . . . . . . . . . . . . . . . . . . Explosive . | . . . . . . . . . . . . . . . . . . . . . . . . . . Electromagnetic . | . . . . . . . . . . . . . . . . . . . . . . . . . . Impact . | . . . . . . . . . . . . . . . . . . . . . . . . . . Slashing 580 | . . . . . . 334 . . . . . . . . . . . . . . . . 159 87 . Piercing . | . . . . . . . . . . . . . . . . . . . . . . . . . . Highest Corruption 14 | . . . . 1 . . . . . . 7 7 7 7 7 . . . . . . 1 . . 14 Average Corruption 4 | . . . . 1 . . . . . . 7 7 7 7 7 . . . . . . 1 . . 7 Corruption Purged . | . . . . . . . . . . . . . . . . . . . . . . . . . . Corruption Blocked . | . . . . . . . . . . . . . . . . . . . . . . . . . . Effects 36 | . . . . 4 . . . . . . 6 11 7 2 3 . . . . . . . . . 3 Message Errors 7 | . . . . 1 . . . . . . . 2 4 . . . . . . . . . . . . Matter Fused 15 | . . . . 1 . . . . . . 5 5 2 . 2 . . . . . . . . . . Heat Flow Errors 3 | . . . . . . . . . . . . 1 . . . . . . . . . . . . 2 Energy Discharges 4 | . . . . . . . . . . . 1 2 . . 1 . . . . . . . . . . Parts Fused 1 | . . . . 1 . . . . . . . . . . . . . . . . . . . . . Data Loss (minor) 3 | . . . . 1 . . . . . . . . 1 1 . . . . . . . . . . . Data Loss (major) 3 | . . . . . . . . . . . . 1 . 1 . . . . . . . . . . 1 Overload Shots . | . . . . . . . . . . . . . . . . . . . . . . . . . . Overflow Damage 185 | . . . 23 5 . 94 . . . . . . . . . . . . . . . . 63 . . Projectiles 28 | . . . 23 5 . . . . . . . . . . . . . . . . . . . . . Explosions . | . . . . . . . . . . . . . . . . . . . . . . . . . . Melee 157 | . . . . . . 94 . . . . . . . . . . . . . . . . 63 . . Knockbacks 4 | . . . 1 3 . . . . . . . . . . . . . . . . . . . . . Impact . | . . . . . . . . . . . . . . . . . . . . . . . . . . Kinetic 3 | . . . 1 2 . . . . . . . . . . . . . . . . . . . . . Secondary 1 | . . . . 1 . . . . . . . . . . . . . . . . . . . . . Self-Inflicted Damage . | . . . . . . . . . . . . . . . . . . . . . . . . . . Shots . | . . . . . . . . . . . . . . . . . . . . . . . . . . Rammed 1 | . 1 . . . . . . . . . . . . . . . . . . . . . . . . Targets Rammed 2 | . 2 . . . . . . . . . . . . . . . . . . . . . . . . Kicked . | . . . . . . . . . . . . . . . . . . . . . . . . . . Crushed 1 | . 1 . . . . . . . . . . . . . . . . . . . . . . . . Highest Temperature 444 | . 54 . . 42 . 444 . . . . . 105 . . . 312 . . . . . . . . 150 Average Temperature 89 | . 41 . . 14 . 217 . . . . . 63 . . . 169 . . . . . . . . 83 Received Heat Transfer 645 | . 81 . 45 33 . 18 . . . . . . . . . . . . . 39 . 18 . . 411 Siege Activations . | . . . . . . . . . . . . . . . . . . . . . . . . . . Martial Activations . | . . . . . . . . . . . . . . . . . . . . . . . . . . Shielding Activations . | . . . . . . . . . . . . . . . . . . . . . . . . . . Robots Disrupted . | . . . . . . . . . . . . . . . . . . . . . . . . . . Combat Hostiles . | . . . . . . . . . . . . . . . . . . . . . . . . . . Robots Corrupted . | . . . . . . . . . . . . . . . . . . . . . . . . . . Combat Hostiles . | . . . . . . . . . . . . . . . . . . . . . . . . . . Parts Fried . | . . . . . . . . . . . . . . . . . . . . . . . . . . Impact Corruptions . | . . . . . . . . . . . . . . . . . . . . . . . . . . Robots Melted . | . . . . . . . . . . . . . . . . . . . . . . . . . . Combat Hostiles . | . . . . . . . . . . . . . . . . . . . . . . . . . . Parts Melted . | . . . . . . . . . . . . . . . . . . . . . . . . . . Heat Transferred 225 | . 225 . . . . . . . . . . . . . . . . . . . . . . . . Parts Sabotaged . | . . . . . . . . . . . . . . . . . . . . . . . . . . Parts Stolen . | . . . . . . . . . . . . . . . . . . . . . . . . . . Parts Stripped . | . . . . . . . . . . . . . . . . . . . . . . . . . . Power Chain Reactions . | . . . . . . . . . . . . . . . . . . . . . . . . . . Alert | -11 -10 -10 -10 -8 -8 -6 -6 -6 -6 -5 -5 -5 -5 -5 -4 -4 -4 -4 -4 -3 -3 -3 -2 -2 -2 ------- Run | Yrd Mat Min Sub Rec Scr Fac Low Low Zio Pro Fac Upp Upp Zhi Pro Fac Upp Upp War Pro Res Qua Res Tes Frg Maximum Alert Level 2 | . . . . . . . . . . . 1 . . . . 2 . . . . . . 1 . 1 Low Security (%) 86 | 100 100 100 . 100 . 100 . . . . 26 . . . . 43 . . . . 100 100 95 100 95 Level 1 10 | . . . . . . . . . . . 73 . . . . 37 . . . . . . 4 . 4 Level 2 2 | . . . . . . . . . . . . . . . . 19 . . . . . . . . . Level 3 . | . . . . . . . . . . . . . . . . . . . . . . . . . . Level 4 . | . . . . . . . . . . . . . . . . . . . . . . . . . . Level 5 . | . . . . . . . . . . . . . . . . . . . . . . . . . . High Security . | . . . . . . . . . . . . . . . . . . . . . . . . . . Max Security . | . . . . . . . . . . . . . . . . . . . . . . . . . . Peak Influence 490 | . 36 . . 120 . 70 . . . . 331 . . . . 490 . . . . 198 126 295 163 333 Initial 147 | . . . . . . . . . . . 118 . . . . 86 . . . . 18 94 16 147 57 Average 78 | . 5 . . 35 . 14 . . . . 213 . . . . 264 . . . . 50 81 49 136 53 Influence Increases 5701 | . 95 . 207 282 . 200 . 115 . 507 563 593 205 . 270 819 322 77 . 142 311 66 378 36 513 Destroy 0b10 Robot/C 2540 | . 40 . 120 140 . 20 . 20 . 300 260 420 120 . 180 400 160 40 . 20 140 . 160 . . Destroy 0b10 Robot/NC 105 | . 15 . . 15 . 15 . . . . 15 . . . . 20 . . . . . . 25 . . Destroy Leader 360 | . 14 . . . . . . 10 . 40 40 20 30 . 20 74 20 10 . 10 40 . 32 . . Allied During Kill 1098 | . . . 12 93 . 10 . 10 . 152 119 153 40 . 70 124 142 12 . 7 62 . 92 . . Successful Hack 91 | . 11 . . 16 . 25 . . . . 23 . . . . 16 . . . . . . . . . Disable Machine 180 | . . . . . . 15 . . . . 30 . . . . 45 . . . . 15 60 . . 15 Destroy Structure 337 | . . . . 3 . 25 . . . . 76 . . . . 80 . . . . 54 6 69 6 18 Partial Spotted 60 | . . . . . . 30 . . . . . . . . . 15 . . . . . . . . 15 Lose Combat Pursuer 930 | . 15 . 75 15 . 60 . 75 . 15 . . 15 . . 45 . 15 . 105 . . . 30 465 Influence Decreases 5378 | . 95 . 207 282 . 145 55 115 . 319 440 394 247 468 132 782 186 356 32 115 170 204 145 196 293 Entered New Map 1241 | . . . . . . . 21 . . . 70 116 97 468 . 52 66 60 32 . 9 74 14 116 46 Time Decay 2683 | . 95 . 117 282 . 104 34 115 . 219 140 198 110 . 100 270 120 198 . 75 88 130 61 70 157 Lost Part 140 | . . . 10 . . . . . . . 20 . . . . . . . . . . . 10 10 90 Lost Ally 864 | . . . 80 . . 41 . . . 100 60 80 40 . 32 160 . 98 . 40 73 . 60 . . Purge Threat 450 | . . . . . . . . . . . 150 . . . . 300 . . . . . . . . . Squads Dispatched 29 | . . . . . . 3 . . . . 2 . . . . 9 . . . . 1 4 3 2 5 Investigation 7 | . . . . . . . . . . . . . . . . 7 . . . . . . . . . Extermination 7 | . . . . . . 2 . . . . . . . . . 1 . . . . 1 1 . . 2 Reinforcement 12 | . . . . . . 1 . . . . 2 . . . . 1 . . . . . 1 3 1 3 Assault 1 | . . . . . . . . . . . . . . . . . . . . . . . . 1 . Garrison 2 | . . . . . . . . . . . . . . . . . . . . . . 2 . . . Intercept . | . . . . . . . . . . . . . . . . . . . . . . . . . . Searches Triggered . | . . . . . . . . . . . . . . . . . . . . . . . . . . Construction Impeded 2 | . . . . . . . . . . . . . . . . 1 . . . . . . 1 . . Haulers Reinforced 1 | . . . . . . . . . . . 1 . . . . . . . . . . . . . . Active Scanning Responses . | . . . . . . . . . . . . . . . . . . . . . . . . . . Cargo Convoy Interrupts . | . . . . . . . . . . . . . . . . . . . . . . . . . . Stealth | -11 -10 -10 -10 -8 -8 -6 -6 -6 -6 -5 -5 -5 -5 -5 -4 -4 -4 -4 -4 -3 -3 -3 -2 -2 -2 --------- Run | Yrd Mat Min Sub Rec Scr Fac Low Low Zio Pro Fac Upp Upp Zhi Pro Fac Upp Upp War Pro Res Qua Res Tes Frg Distress Signals 5 | . . . . 1 . . . . . . . . . . . 2 . . . . . 1 . . 1 Communications Jammed . | . . . . . . . . . . . . . . . . . . . . . . . . . . Distress Signals . | . . . . . . . . . . . . . . . . . . . . . . . . . . Times Spotted 158 | . 6 . 20 8 . 8 . 5 . 4 2 1 1 . . 13 4 1 . 7 . 15 14 6 43 Peak Tracking Total 24 | . 2 . 4 5 . 5 . 5 . 3 1 1 1 . . 5 4 1 . 5 . 9 10 4 24 Tactical Retreats 26 | . 1 . 2 1 . 2 . 3 . 1 . . 1 . . 3 . 1 . 3 . . . 1 7 Traps | -11 -10 -10 -10 -8 -8 -6 -6 -6 -6 -5 -5 -5 -5 -5 -4 -4 -4 -4 -4 -3 -3 -3 -2 -2 -2 ------- Run | Yrd Mat Min Sub Rec Scr Fac Low Low Zio Pro Fac Upp Upp Zhi Pro Fac Upp Upp War Pro Res Qua Res Tes Frg Traps Triggered 3 | . 2 . 1 . . . . . . . . . . . . . . . . . . . . . . Indirectly . | . . . . . . . . . . . . . . . . . . . . . . . . . . Trap Hack Attempts . | . . . . . . . . . . . . . . . . . . . . . . . . . . Triggered . | . . . . . . . . . . . . . . . . . . . . . . . . . . Disarmed . | . . . . . . . . . . . . . . . . . . . . . . . . . . Reprogrammed 1 | . . . . . . . . . . . . . . . . . . . . . . . . . 1 Reused . | . . . . . . . . . . . . . . . . . . . . . . . . . . Traps Extracted . | . . . . . . . . . . . . . . . . . . . . . . . . . . Installed . | . . . . . . . . . . . . . . . . . . . . . . . . . . Triggered . | . . . . . . . . . . . . . . . . . . . . . . . . . . Machines | -11 -10 -10 -10 -8 -8 -6 -6 -6 -6 -5 -5 -5 -5 -5 -4 -4 -4 -4 -4 -3 -3 -3 -2 -2 -2 ---------- Run | Yrd Mat Min Sub Rec Scr Fac Low Low Zio Pro Fac Upp Upp Zhi Pro Fac Upp Upp War Pro Res Qua Res Tes Frg Machines Disabled 23 | . . . 3 . . 1 . . . . 2 5 . . . 3 2 . 1 . 1 4 . . 1 Max in Single Turn 1 | . . . 1 . . 1 . . . . . . . . . . 1 . 1 . . 1 . . 1 Garrison Access 5 | . . . . . . . . . . . 1 . . . . 2 . . . . . . 1 1 . Machines Repaired . | . . . . . . . . . . . . . . . . . . . . . . . . . . Machines Dismantled 1 | . . . . . . . . . . . . . . . . . . . 1 . . . . . . Machines Sabotaged . | . . . . . . . . . . . . . . . . . . . . . . . . . . Overloaded Fab Kills . | . . . . . . . . . . . . . . . . . . . . . . . . . . Hacking | -11 -10 -10 -10 -8 -8 -6 -6 -6 -6 -5 -5 -5 -5 -5 -4 -4 -4 -4 -4 -3 -3 -3 -2 -2 -2 --------- Run | Yrd Mat Min Sub Rec Scr Fac Low Low Zio Pro Fac Upp Upp Zhi Pro Fac Upp Upp War Pro Res Qua Res Tes Frg Machines Accessed 72 | . 3 . 1 6 5 10 1 1 . . 5 1 . 4 . 11 . . 3 . 1 9 1 3 7 Terminals 36 | . 3 . . 6 . 5 . . . . 3 1 . . . 2 . . . . . 8 . 2 6 Fabricators 5 | . . . . . . 2 . . . . 1 . . . . 2 . . . . . . . . . Repair Stations . | . . . . . . . . . . . . . . . . . . . . . . . . . . Recycling Units 5 | . . . . . . . . . . . . . . . . 5 . . . . . . . . . Scanalyzers 4 | . . . . . . 1 . . . . . . . . . . . . . . 1 1 . . 1 Garrison Access 7 | . . . . . . 2 . . . . 1 . . . . 2 . . . . . . 1 1 . Total Hacks 242 | . 12 . 1 15 31 26 1 3 . . 17 6 . 16 . 23 . . 8 . 9 28 1 14 31 Successful 192 | . 4 . 1 5 31 13 1 3 . . 15 6 . 16 . 21 . . 8 . 7 22 1 13 25 Failed 47 | . 8 . . 10 . 12 . . . . 2 . . . . 2 . . . . 1 6 . 1 5 Catastrophic 8 | . 1 . . 1 . 5 . . . . . . . . . . . . . . . 1 . . . Database Lockouts 3 | . . . . . . 1 . . . . . . . . . . . . . . 1 . . . 1 Manual 102 | . 11 . . 13 . 11 . . . . 9 . . . . 13 . . . . 4 18 . 8 15 Terminals 147 | . 12 . . 15 . 16 . . . . 14 6 . . . 12 . . . . 6 25 . 13 28 Fabricators 10 | . . . . . . 4 . . . . 2 . . . . 4 . . . . . . . . . Repair Stations . | . . . . . . . . . . . . . . . . . . . . . . . . . . Recycling Units 5 | . . . . . . . . . . . . . . . . 5 . . . . . . . . . Scanalyzers 12 | . . . . . . 3 . . . . . . . . . . . . . . 3 3 . . 3 Garrison Access 8 | . . . . . . 3 . . . . 1 . . . . 2 . . . . . . 1 1 . Terminal Hacks 152 | . 1 . 1 4 31 6 1 3 . . 9 6 . 16 . 8 . . 8 . 5 19 . 11 23 Record 46 | . . . . . 25 . . 3 . . . 6 . 4 . . . . . . . 3 . . 5 Part Schematic 6 | . . . . . . . . . . . 1 . . 4 . 1 . . . . . . . . . Robot Analysis 12 | . . . . 2 6 . . . . . . . . 4 . . . . . . . . . . . Prototype ID Bank 12 | . . . . 1 . 1 . . . . . . . 4 . . . . 6 . . . . . . Open Door 5 | . . . . . . 1 1 . . . . . . . . . . . 2 . . 1 . . . Level Access Points 4 | . . . . . . . . . . . 1 . . . . . . . . . . 1 . 1 1 Branch Access Points 7 | . . . . . . 1 . . . . 1 . . . . 1 . . . . 1 1 . 1 1 Emergency Access Points 3 | . . . . . . . . . . . . . . . . 1 . . . . . 1 . 1 . Machine Index 4 | . . . . . . . . . . . 1 . . . . . . . . . . 1 . 1 1 Terminal Index 1 | . . . . . . . . . . . . . . . . . . . . . 1 . . . . Alert Level 11 | . . . . . . 1 . . . . 2 . . . . 1 . . . . 1 2 . 2 2 Unreport Threat 1 | . . . . . . . . . . . 1 . . . . . . . . . . . . . . Locate Traps 4 | . . . . . . . . . . . . . . . . 1 . . . . . . . 1 2 Reprogram Traps 1 | . . . . . . . . . . . . . . . . . . . . . . . . . 1 Dispatch Records 6 | . . . . . . . . . . . . . . . . 1 . . . . 1 2 . . 2 Patrol Status 3 | . . . . . . 1 . . . . . . . . . . . . . . . 2 . . . Recall Investigation 1 | . . . . . . . . . . . . . . . . 1 . . . . . . . . . Recall Reinforcements 4 | . . . . . . . . . . . . . . . . . . . . . . 1 . . 3 Registered Components 1 | . . . . . . . . . . . 1 . . . . . . . . . . . . . . Registered Prototypes 1 | . . . . . . . . . . . . . . . . . . . . . . 1 . . . Zone Layout 16 | . 1 . . 1 . 1 . . . . 1 . . . . 1 . . . . 1 3 . 2 5 Proto ID Catalog 1 | . . . 1 . . . . . . . . . . . . . . . . . . . . . . Protovariant Controls 2 | . . . . . . . . . . . . . . . . . . . . . . . . 2 . Fabricator Hacks 7 | . . . . . . 2 . . . . 1 . . . . 4 . . . . . . . . . Network Status 3 | . . . . . . 2 . . . . 1 . . . . . . . . . . . . . . Load Schematic 2 | . . . . . . . . . . . . . . . . 2 . . . . . . . . . Build 2 | . . . . . . . . . . . . . . . . 2 . . . . . . . . . Repair Station Hacks . | . . . . . . . . . . . . . . . . . . . . . . . . . . Recycling Unit Hacks . | . . . . . . . . . . . . . . . . . . . . . . . . . . Scanalyzer 8 | . . . . . . 1 . . . . . . . . . . . . . . 2 3 . . 2 Retrieve Study 8 | . . . . . . 1 . . . . . . . . . . . . . . 2 3 . . 2 Garrison Access Hacks 5 | . . . . . . . . . . . 1 . . . . 2 . . . . . . 1 1 . Seal Access 5 | . . . . . . . . . . . 1 . . . . 2 . . . . . . 1 1 . Unauthorized Hacks 20 | . 3 . . 1 . 4 . . . . 4 . . . . 7 . . . . . . . 1 . Terminals 12 | . 3 . . 1 . 2 . . . . 3 . . . . 2 . . . . . . . 1 . Track 1 | . . . . . . . . . . . . . . . . . . . . . . . . 1 . Assimilate 1 | . . . . . . . . . . . 1 . . . . . . . . . . . . . . Botnet 7 | . 1 . . 1 . 2 . . . . 2 . . . . 1 . . . . . . . . . Disrupt 1 | . 1 . . . . . . . . . . . . . . . . . . . . . . . . Operators 2 | . 1 . . . . . . . . . . . . . . 1 . . . . . . . . . Fabricators 3 | . . . . . . 2 . . . . 1 . . . . . . . . . . . . . . Liberate 3 | . . . . . . 2 . . . . 1 . . . . . . . . . . . . . . Repair Stations . | . . . . . . . . . . . . . . . . . . . . . . . . . . Recycling Units 5 | . . . . . . . . . . . . . . . . 5 . . . . . . . . . Fedlink 5 | . . . . . . . . . . . . . . . . 5 . . . . . . . . . Scanalyzers . | . . . . . . . . . . . . . . . . . . . . . . . . . . Garrison Access . | . . . . . . . . . . . . . . . . . . . . . . . . . . Data Cores Recovered . | . . . . . . . . . . . . . . . . . . . . . . . . . . Used . | . . . . . . . . . . . . . . . . . . . . . . . . . . Hacking Detections 35 | . 3 . . 6 . 9 . . . . 4 1 . . . 4 . . . . 2 2 . 1 3 Full Trace Events 2 | . . . . . . . . . . . . . . . . 2 . . . . . . . . . Feedback Events . | . . . . . . . . . . . . . . . . . . . . . . . . . . Feedback Blocked . | . . . . . . . . . . . . . . . . . . . . . . . . . . Robot Schematics Acquired 3 | . . . . . . . . . 3 . . . . . . . . . . . . . . . . Robots Built . | . . . . . . . . . . . . . . . . . . . . . . . . . . Authchips . | . . . . . . . . . . . . . . . . . . . . . . . . . . Time . | . . . . . . . . . . . . . . . . . . . . . . . . . . Total Robot Build Rating . | . . . . . . . . . . . . . . . . . . . . . . . . . . Part Schematics Acquired 19 | . . . . . . . . . 13 . 1 . . 4 . 1 . . . . . . . . . Parts Built 3 | . . . . . . . . . . . . . . . . 3 . . . . . . . . . Authchips . | . . . . . . . . . . . . . . . . . . . . . . . . . . Time 151 | . . . . . . . . . . . . . . . . 151 . . . . . . . . . Total Part Build Rating 21 | . . . . . . . . . . . . . . . . 21 . . . . . . . . . Part Studies Acquired 8 | . . . . . . 1 . . . . . . . . . . . . . . 2 3 . . 2 Parts Repaired . | . . . . . . . . . . . . . . . . . . . . . . . . . . Time . | . . . . . . . . . . . . . . . . . . . . . . . . . . Parts Recycled . | . . . . . . . . . . . . . . . . . . . . . . . . . . Recycled Matter . | . . . . . . . . . . . . . . . . . . . . . . . . . . Retrieved Matter . | . . . . . . . . . . . . . . . . . . . . . . . . . . Retrieved Components . | . . . . . . . . . . . . . . . . . . . . . . . . . . Parts Scanalyzed . | . . . . . . . . . . . . . . . . . . . . . . . . . . Part Schematics Acquired . | . . . . . . . . . . . . . . . . . . . . . . . . . . Parts Damaged . | . . . . . . . . . . . . . . . . . . . . . . . . . . Bothacking | -11 -10 -10 -10 -8 -8 -6 -6 -6 -6 -5 -5 -5 -5 -5 -4 -4 -4 -4 -4 -3 -3 -3 -2 -2 -2 ------------ Run | Yrd Mat Min Sub Rec Scr Fac Low Low Zio Pro Fac Upp Upp Zhi Pro Fac Upp Upp War Pro Res Qua Res Tes Frg Used RIF Installer . | . . . . . . . . . . . . . . . . . . . . . . . . . . Robots Hacked 17 | . . . . . . . . . . . . . . . . 3 . . . . . 11 3 . . Non-combat 3 | . . . . . . . . . . . . . . . . . . . . . . . 3 . . Combat . | . . . . . . . . . . . . . . . . . . . . . . . . . . Robot Hacks Applied 3 | . . . . . . . . . . . . . . . . . . . . . . . 3 . . parse_system 3 | . . . . . . . . . . . . . . . . . . . . . . . 3 . . Manual 14 | . . . . . . . . . . . . . . . . 3 . . . . . 11 . . . Relay Couplers Released . | . . . . . . . . . . . . . . . . . . . . . . . . . . Fabnet Peak Effective % . | . . . . . . . . . . . . . . . . . . . . . . . . . . Robots Rewired 8 | . . . . . . . . . . . . . . . . . 3 . 5 . . . . . . Allies Hacked . | . . . . . . . . . . . . . . . . . . . . . . . . . . Hacks Repelled . | . . . . . . . . . . . . . . . . . . . . . . . . . . Allies | -11 -10 -10 -10 -8 -8 -6 -6 -6 -6 -5 -5 -5 -5 -5 -4 -4 -4 -4 -4 -3 -3 -3 -2 -2 -2 -------- Run | Yrd Mat Min Sub Rec Scr Fac Low Low Zio Pro Fac Upp Upp Zhi Pro Fac Upp Upp War Pro Res Qua Res Tes Frg Total Allies 84 | . . . 14 . . . . 4 3 4 3 7 4 . 2 11 5 4 5 6 5 . 7 . . Largest Group 10 | . . . 10 10 10 10 . 4 7 7 4 4 4 3 4 4 7 5 8 3 4 3 4 . . Highest-Rated Group 522 | . . . 190 190 190 190 . 324 403 403 324 324 318 231 302 324 463 339 522 243 324 243 324 . . Highest-Rated Ally 81 | . . . 19 19 19 19 . 81 81 81 81 81 81 81 81 81 81 81 81 81 81 81 81 . . Initial UFD Resources 54 | . . . . . . 24 24 24 24 27 27 27 27 27 29 29 49 49 49 52 52 52 54 54 54 Total Orders . | . . . . . . . . . . . . . . . . . . . . . . . . . . Ally Attacks 506 | . . . 25 33 . 16 . 2 . 38 38 57 35 . 25 91 13 40 . 18 27 . 48 . . Total Damage 16477 | . . . 339 511 . 369 . 72 . 1250 2034 2837 842 . 563 3233 892 501 . 439 729 . 1866 . . Kills 144 | . . . 2 6 . 3 . 1 . 17 16 23 7 . 9 27 11 2 . 1 7 . 12 . . Allies Corrupted 1 | . . . . . . . . . . . . . . . . 1 . . . . . . . . . Allies Melted . | . . . . . . . . . . . . . . . . . . . . . . . . . . Intel | -11 -10 -10 -10 -8 -8 -6 -6 -6 -6 -5 -5 -5 -5 -5 -4 -4 -4 -4 -4 -3 -3 -3 -2 -2 -2 ------- Run | Yrd Mat Min Sub Rec Scr Fac Low Low Zio Pro Fac Upp Upp Zhi Pro Fac Upp Upp War Pro Res Qua Res Tes Frg Active Infowar (turns) 8574 | . 494 149 475 . . 671 401 1046 526 539 284 419 220 75 214 587 254 408 304 246 187 279 243 159 394 Optics 7455 | . . . . . . 670 401 1046 526 539 284 419 220 75 214 587 254 408 304 246 187 279 243 159 394 Sensors 7364 | . . . . . . 671 401 1046 526 539 284 419 220 75 214 587 254 408 304 246 187 279 243 159 302 Terrain 7140 | . . . . . . 463 401 1046 526 536 284 419 220 73 214 587 254 408 304 246 187 268 243 159 302 Structural 1118 | . 494 149 475 . . . . . . . . . . . . . . . . . . . . . . Traps 3284 | . . . . . . 667 401 1046 526 535 109 . . . . . . . . . . . . . . ECM 135 | . . . . . . 135 . . . . . . . . . . . . . . . . . . . Robot Analysis Total 12 | . . . . 2 6 . . . . . . . . 4 . . . . . . . . . . . Derelict Logs Recovered 11 | . . . 2 . 1 . . 1 . 3 . 2 . . 1 . 1 . . . . . . . . Drone Launches . | . . . . . . . . . . . . . . . . . . . . . . . . . . Drone Recoveries . | . . . . . . . . . . . . . . . . . . . . . . . . . . Exploration | -11 -10 -10 -10 -8 -8 -6 -6 -6 -6 -5 -5 -5 -5 -5 -4 -4 -4 -4 -4 -3 -3 -3 -2 -2 -2 ------------- Run | Yrd Mat Min Sub Rec Scr Fac Low Low Zio Pro Fac Upp Upp Zhi Pro Fac Upp Upp War Pro Res Qua Res Tes Frg Turns Passed 15885 | 60 522 149 3227 847 3621 674 401 1046 526 539 284 419 220 75 214 587 254 408 304 246 187 279 243 159 394 Spaces Moved 14433 | 34 263 53 1868 490 2192 1000 437 673 860 521 473 390 242 132 276 1086 287 367 683 194 330 532 184 341 525 Core 137 | 4 . . . . . . . . . . . . . . . . . . . . . . . . 133 Treads 4896 | 30 263 53 1868 490 2192 . . . . . . . . . . . . . . . . . . . . Legs . | . . . . . . . . . . . . . . . . . . . . . . . . . . Wheels . | . . . . . . . . . . . . . . . . . . . . . . . . . . Hover . | . . . . . . . . . . . . . . . . . . . . . . . . . . Flight 9400 | . . . . . . 1000 437 673 860 521 473 390 242 132 276 1086 287 367 683 194 330 532 184 341 392 Fastest Speed 24 | 50 160 160 160 160 160 40 40 40 40 40 40 40 40 40 40 29 29 29 29 24 29 24 24 24 24 Average Speed 78 | 147 160 160 160 160 160 40 40 40 40 40 40 40 40 40 40 38 32 39 35 28 29 28 26 28 34 Slowest Speed 160 | 160 160 160 160 160 160 40 40 40 40 40 40 40 40 40 40 40 40 40 40 29 29 29 29 29 150 Overloaded Moves 338 | . . . . . . . . . . . . . . . . . . . . 15 . 88 84 67 84 Propulsion Burnouts 1 | . . . . . . . . . . . . . . . . . . . . . . . . 1 . Robots Hopped 34 | . . . . . . 7 . 1 . . 2 . 1 . . 2 . . 3 . . 6 6 . 6 Potential Cave-ins . | . . . . . . . . . . . . . . . . . . . . . . . . . . Cave-ins Triggered 1 | . . . . . . . . . . . 1 . . . . . . . . . . . . . . Teleports 1 | . . . . . . . . . . . . . . . . . . . . . . 1 . . . Exploration Rate (%) 52 | 3 50 22 96 97 89 34 66 80 84 64 16 64 49 61 45 24 56 57 92 38 12 87 9 44 30 Regions Visited 25 Branch Regions 19 Pre-discovered Areas 10 | . . . 1 . 2 . . . 2 1 . . . 3 . 1 . . . . . . . . . Known Exits Taken 19 | . . . . . . 1 1 1 1 1 1 1 1 1 1 1 1 1 1 1 1 1 1 1 . Unknown Exits Taken 6 | 1 1 1 1 1 1 . . . . . . . . . . . . . . . . . . . . Scrap Searched 32 | . . . 10 . 7 . 1 2 2 1 . 4 2 . . . 2 1 . . . . . . . Spaces Dug 53 | . . . . . . 12 . 2 . 7 12 . 2 . . 5 . . . 2 . 3 . 2 6 Terrain Destroyed 55 | . . . . 2 . 12 . 2 . 7 12 . 2 . . 5 . . . 2 . 3 . 2 6 Melee 53 | . . . . . . 12 . 2 . 7 12 . 2 . . 5 . . . 2 . 3 . 2 6 Projectile 2 | . . . . 2 . . . . . . . . . . . . . . . . . . . . . AOE . | . . . . . . . . . . . . . . . . . . . . . . . . . . Terrain Rammed . | . . . . . . . . . . . . . . . . . . . . . . . . . . Walls Destroyed . | . . . . . . . . . . . . . . . . . . . . . . . . . . Machines Disabled . | . . . . . . . . . . . . . . . . . . . . . . . . . . Actions | -11 -10 -10 -10 -8 -8 -6 -6 -6 -6 -5 -5 -5 -5 -5 -4 -4 -4 -4 -4 -3 -3 -3 -2 -2 -2 --------- Run | Yrd Mat Min Sub Rec Scr Fac Low Low Zio Pro Fac Upp Upp Zhi Pro Fac Upp Upp War Pro Res Qua Res Tes Frg Total 18669 | 41 340 117 2055 536 2315 1237 664 1445 1040 836 538 652 359 154 379 1240 442 630 726 379 420 640 366 396 722 Wait 3802 | . 59 65 112 34 74 189 220 770 174 300 46 252 117 8 102 135 150 259 15 184 78 62 169 50 178 Move 14344 | 33 262 52 1867 489 2191 986 436 670 859 520 468 389 239 131 275 1081 286 366 677 193 329 519 173 340 513 Hop 30 | . . . . . . 6 . 1 . . 2 . 1 . . 2 . . 2 . . 6 4 . 6 Pick Up 72 | 1 3 . 9 1 24 4 4 . 2 . 1 5 . 3 1 1 . 1 1 . 3 5 1 . 2 Fast Attach 67 | 6 2 . 6 . 1 6 . 1 1 4 3 2 . 5 . 4 . 1 6 . 2 9 3 . 5 Attach 23 | . . . 1 . 3 8 1 . 1 1 . 1 . . . 1 . . . . 1 1 2 1 1 Detach 20 | . . . 3 . 4 3 . . . 2 1 . . . . . . . 1 . . 1 2 . 3 Swap 23 | 1 1 . 6 1 1 4 . . . . . . . . . 1 1 . 2 . 3 1 . . 1 Drop 102 | . . . 18 2 17 10 3 1 2 2 3 3 . 7 1 2 . 2 6 . 4 11 2 . 6 Fire 96 | . 11 . 33 9 . . . . . . . . . . . 7 4 . 6 . . 18 8 . . Melee 77 | . . . . . . 21 . 2 1 7 14 . 2 . . 6 1 . . 2 . 7 2 5 7 Ram . | . . . . . . . . . . . . . . . . . . . . . . . . . . Kick . | . . . . . . . . . . . . . . . . . . . . . . . . . . Crush 2 | . 2 . . . . . . . . . . . . . . . . . . . . . . . . Escape Stasis . | . . . . . . . . . . . . . . . . . . . . . . . . . . Rewire . | . . . . . . . . . . . . . . . . . . . . . . . . . . Trap . | . . . . . . . . . . . . . . . . . . . . . . . . . . Miscellaneous 11 | . . . . . . . . . . . . . . . . . . 1 10 . . . . . . Route ------- -11/Scrapyard -10/Materials (discovered 4 exits: [*Mat] / [*Min x2] / *Sub) -10/Mines -10/Subcaves (discovered 3 exits: [*Mat x2] / *Rec) -8/Recycling (discovered 2 exits: *Fac / *Scr) -8/Scraptown (discovered 2 exits: *Fac x2) -6/Factory (discovered 5 exits: *Fac / *Low x2 / *Ext x2) -6/Lower Caves -6/Lower Caves (discovered 2 exits: *Fac / *Zio) -6/Zion -5/Proximity Caves -5/Factory (discovered 6 exits: Fac x4 / *Upp x2) -5/Upper Caves -5/Upper Caves (discovered 2 exits: *Fac / *Zhi) -5/Zhirov -4/Proximity Caves -4/Factory (discovered 2 exits: *Upp x2) -4/Upper Caves -4/Upper Caves (discovered 2 exits: Res / *War) -4/Warlord -3/Proximity Caves -3/Research (discovered 3 exits: Arm / *Qua x2) -3/Quarantine -2/Research -2/Testing (discovered 3 exits: Acc / *Sec / *Frg) -2/Protoforge (discovered 1 exit: *Acc) History --------- Turn | Location | Event 17 | -11/Scrapyard | Discovered new exit (range 16) 61 | -11/Scrapyard | Entered Materials 180 | -10/Materials | Discovered new exit (range 16) 313 | -10/Materials | Build established: Mutant 327 | -10/Materials | Discovered new exit (range 16) 567 | -10/Materials | Discovered new exit (range 9) 574 | -10/Materials | Discovered new exit (range 9) 583 | -10/Materials | Entered Mines 597 | -10/Mines | Met a Derelict bent on vengeance 668 | -10/Mines | Discovered new exit (range 5) 732 | -10/Mines | Entered Subcaves 810 | -10/Subcaves | Learned location of Zion (-6) 810 | -10/Subcaves | Met a Zionite searching for "candidates" 1332 | -10/Subcaves | Visited triangular shrine 1342 | -10/Subcaves | Found Prototype Device 1342 | -10/Subcaves | Identified V3-11A's Pendant 1347 | -10/Subcaves | Befriended Subdweller 1462 | -10/Subcaves | Befriended Subdweller 1492 | -10/Subcaves | Befriended Subdweller 1633 | -10/Subcaves | Discovered new exit (range 11) 1659 | -10/Subcaves | Approached by friendly Subdweller 1676 | -10/Subcaves | Lost 3 allies 1679 | -10/Subcaves | Discovered new exit (range 10) 1692 | -10/Subcaves | Befriended Subdweller 1692 | -10/Subcaves | Befriended Subdweller 1722 | -10/Subcaves | Befriended Subdweller 1727 | -10/Subcaves | Befriended Subdweller 1771 | -10/Subcaves | Discovered new exit (range 7) 1798 | -10/Subcaves | Disturbed a concealed Subdweller 1802 | -10/Subcaves | Befriended Subdweller 2392 | -10/Subcaves | Shifting Twisted Machinery released Sub. Laser 2395 | -10/Subcaves | Shifting Twisted Machinery released Sub. Monowheel 2487 | -10/Subcaves | Learned Materials interactive machine intel 2502 | -10/Subcaves | Befriended Subdweller 2502 | -10/Subcaves | Befriended Subdweller 2502 | -10/Subcaves | Befriended Subdweller 2525 | -10/Subcaves | Shifting Twisted Machinery released Mak. Light Armor Plating 2542 | -10/Subcaves | Shifting Twisted Machinery released Battle Rifle 2592 | -10/Subcaves | Befriended Subdweller 2603 | -10/Subcaves | A swath of the cavern ceiling suddenly collapsed 2840 | -10/Subcaves | Visited 4L-MR0's lab 2861 | -10/Subcaves | Found Flightbrick 2907 | -10/Subcaves | Shifting Twisted Machinery released Flamer 3752 | -10/Subcaves | Befriended Subdweller 3758 | -10/Subcaves | A swath of the cavern ceiling suddenly collapsed 3959 | -10/Subcaves | Entered Recycling 3959 | -8/Recycling | Accompanied by 10 allies 4224 | -8/Recycling | Discovered new exit (range 15) 4755 | -8/Recycling | Scanned before Scraplab entrance 4778 | -8/Recycling | Entered Scraplab 4791 | -8/Recycling | Discovered new exit (range 3) 4806 | -8/Recycling | Entered Scraptown 4806 | -8/Scraptown | Accompanied by 10 allies 4806 | -8/Scraptown | System corruption cleaned by C-Scrubber 4891 | -8/Scraptown | Delivered V3-11A's Pendant to T0-NE2 in exchange for information 5106 | -8/Scraptown | Heard Great Nut preacher, LISTEN AND RECITE! 5120 | -8/Scraptown | Visited Shadow of the Wyrm 5144 | -8/Scraptown | Visited Comm Corps 5206 | -8/Scraptown | Visited Symbiants 5229 | -8/Scraptown | Visited Cyclists 5245 | -8/Scraptown | Visited Cave Peace 5254 | -8/Scraptown | Visited IN-MT5's Study 5309 | -8/Scraptown | Visited CPS Storage 5530 | -8/Scraptown | Discovered new exit (range 11) 5598 | -8/Scraptown | Scanned Subdweller tech in exchange for log data 5603 | -8/Scraptown | Learned location of Extension (-6) 5688 | -8/Scraptown | Visited UFD Registry 5688 | -8/Scraptown | Registered with UFD as "Thermoshaft" 5749 | -8/Scraptown | Visited Infowarlord's Domain 5787 | -8/Scraptown | Visited Derelict Rescue Squad 5826 | -8/Scraptown | Visited DA-N13 Charitable Foundation 5840 | -8/Scraptown | Found DCF Scrap (27 items) 5869 | -8/Scraptown | Visited Chapter 10 5886 | -8/Scraptown | Visited Research Penetration Think Tank 5920 | -8/Scraptown | Visited Scrap Suit Storage 5944 | -8/Scraptown | Visited Abandonware Association 5960 | -8/Scraptown | Learned abandonware demo "OVRCLOCK.EXE" 5966 | -8/Scraptown | Learned abandonware demo "SHUTEYE.EXE" 5966 | -8/Scraptown | Learned abandonware demo "REVENGE.EXE" 6027 | -8/Scraptown | Visited Analyses Database 6062 | -8/Scraptown | Visited Junk Cannon Lab 6176 | -8/Scraptown | Delivered Scrap Shield to a Scientist 7089 | -8/Scraptown | Found Prototype Special Weapon 7142 | -8/Scraptown | Identified Junk Cannon 7274 | -8/Scraptown | Found DRS Beacon 7358 | -8/Scraptown | Found Exp. Signal Interpreter 7577 | -8/Scraptown | Entered Cyclist Reading Room 8296 | -8/Scraptown | Met Optimus 8296 | -8/Scraptown | Accepted into 0bPrime 8379 | -8/Scraptown | Discovered new exit (range 5) 8427 | -8/Scraptown | Entered Factory 8427 | -6/Factory | Accompanied by 10 allies 8427 | -6/Factory | Evolved 8 slots: Propulsion x2, Utility x6 8430 | -6/Factory | Attached Flightbrick, gained temporary slots: Utility x3 8618 | -6/Factory | Lost 10 allies 8705 | -6/Factory | Found Prototype Processor 8705 | -6/Factory | Identified Exp. Targeting Computer 8744 | -6/Factory | Build established: Ninja 8808 | -6/Factory | Discovered new exit (range 10) 8811 | -6/Factory | Identified exit to Extension 8890 | -6/Factory | Discovered new exit (range 5) 8892 | -6/Factory | Identified exit to Factory 8963 | -6/Factory | Central database locked down 9046 | -6/Factory | Identified exit to Lower Caves 9101 | -6/Factory | Entered Lower Caves 9103 | -6/Lower Caves | UFD Scientist delivered a prototype 9105 | -6/Lower Caves | Found Prototype Protection 9455 | -6/Lower Caves | Discovered new exit (range 16) 9461 | -6/Lower Caves | Identified exit to Lower Caves 9463 | -6/Lower Caves | Encountered a Warlord checkpoint 9502 | -6/Lower Caves | Entered another Lower Caves area 9601 | -6/Lower Caves | Prototype Device suddenly appears! 9601 | -6/Lower Caves | Found Prototype Device 9601 | -6/Lower Caves | Identified Amulet of Y3-NDR 9636 | -6/Lower Caves | Learned Factory interactive machine intel 9648 | -6/Lower Caves | Discovered exit to Factory (range 12) 9657 | -6/Lower Caves | Joined by bewildered Wizard 9657 | -6/Lower Caves | Joined by bewildered Wizard 9657 | -6/Lower Caves | Joined by bewildered Wizard 9740 | -6/Lower Caves | Joined by bewildered Wizard 9888 | -6/Lower Caves | Build established: Scout 9908 | -6/Lower Caves | Discovered new exit (range 11) 9912 | -6/Lower Caves | Identified exit to Zion 10548 | -6/Lower Caves | Entered Zion 10548 | -6/Zion | Accompanied by 4 allies 10562 | -6/Zion | Discovered new exit (range 18) 10570 | -6/Zion | Gained Derelict followers 10605 | -6/Zion | Given A8's code to call for help 10640 | -6/Zion | Given the Hacking Drone Bay 10660 | -6/Zion | Learned location of Warlord (-4) 10769 | -6/Zion | Found CR-A16's Pointy Stick 10845 | -6/Zion | Turned away by Imprinter 10859 | -6/Zion | Found Relay Coupler [Programmer] 10919 | -6/Zion | Identified exit to Proximity Caves 11074 | -6/Zion | Entered Proximity Caves 11074 | -5/Proximity Caves | Accompanied by 7 allies 11157 | -5/Proximity Caves | Build established: Hacker-Scout 11167 | -5/Proximity Caves | Joined by bewildered Wizard 11239 | -5/Proximity Caves | Spotted B-75 Beast 11458 | -5/Proximity Caves | Identified Enh. Scrap Shield 11522 | -5/Proximity Caves | Joined by bewildered Wizard 11523 | -5/Proximity Caves | Joined by bewildered Wizard 11576 | -5/Proximity Caves | Joined by bewildered Wizard 11596 | -5/Proximity Caves | Learned Factory interactive machine intel 11613 | -5/Proximity Caves | Entered Factory 11613 | -5/Factory | Accompanied by 4 allies 11613 | -5/Factory | Evolved 2 slots: Propulsion x1, Utility x1 11614 | -5/Factory | Loaded intel: 54 interactive machine locations 11671 | -5/Factory | Identified exit to Upper Caves 11671 | -5/Factory | Identified exit to Factory 11722 | -5/Factory | Crushed by falling debris 11875 | -5/Factory | Joined by bewildered Wizard 11877 | -5/Factory | Joined by bewildered Wizard 11878 | -5/Factory | Joined by bewildered Wizard 11897 | -5/Factory | Entered Upper Caves 11897 | -5/Upper Caves | Accompanied by 3 allies 11908 | -5/Upper Caves | Learned Factory stockpile data 11909 | -5/Upper Caves | Identified exit to Upper Caves 11957 | -5/Upper Caves | Joined by bewildered Wizard 12045 | -5/Upper Caves | Lost 4 allies 12127 | -5/Upper Caves | Joined by bewildered Wizard 12127 | -5/Upper Caves | Joined by bewildered Wizard 12128 | -5/Upper Caves | Joined by bewildered Wizard 12134 | -5/Upper Caves | Joined by bewildered Wizard 12146 | -5/Upper Caves | Learned Factory trap positions 12146 | -5/Upper Caves | Learned Extension trap positions 12146 | -5/Upper Caves | Learned Factory terminal intel 12146 | -5/Upper Caves | Learned Factory garrison access intel 12146 | -5/Upper Caves | Learned Extension garrison access intel 12162 | -5/Upper Caves | Joined by bewildered Wizard 12177 | -5/Upper Caves | Encountered a Warlord checkpoint 12284 | -5/Upper Caves | Spotted B-75 Beast 12312 | -5/Upper Caves | Joined by bewildered Wizard 12316 | -5/Upper Caves | Entered another Upper Caves area 12316 | -5/Upper Caves | Accompanied by 4 allies 12368 | -5/Upper Caves | Discovered exit to Factory (range 13) 12389 | -5/Upper Caves | Lost 3 allies 12446 | -5/Upper Caves | Build established: Wizard-Scout 12463 | -5/Upper Caves | Discovered new exit (range 8) 12466 | -5/Upper Caves | Identified exit to Zhirov 12488 | -5/Upper Caves | Joined by bewildered Wizard 12490 | -5/Upper Caves | Joined by bewildered Wizard 12512 | -5/Upper Caves | Joined by bewildered Wizard 12514 | -5/Upper Caves | Joined by bewildered Wizard 12536 | -5/Upper Caves | Entered Zhirov 12536 | -5/Zhirov | Accompanied by 3 allies 12536 | -5/Zhirov | Discovered new exit (range 3) 12544 | -5/Zhirov | Met Zhirov 12551 | -5/Zhirov | Learned location of Quarantine (-3) 12551 | -5/Zhirov | Learned location of Testing (-2) 12551 | -5/Zhirov | Learned location of Command (-1) 12555 | -5/Zhirov | Zhirov requested help retrieving the SGEMP Prototype 12561 | -5/Zhirov | Found Alien Artifact 12561 | -5/Zhirov | Identified Integrated Dissipator 12561 | -5/Zhirov | Installed Integrated Dissipator, increased core heat dissipation (+20) 12587 | -5/Zhirov | Found Alien Artifact 12603 | -5/Zhirov | Identified exit to Proximity Caves 12611 | -5/Zhirov | Entered Proximity Caves 12611 | -4/Proximity Caves | Accompanied by 3 allies 12702 | -4/Proximity Caves | Learned Research stockpile data 12720 | -4/Proximity Caves | Joined by bewildered Wizard 12732 | -4/Proximity Caves | Discovered exit to Factory (range 15) 12825 | -4/Proximity Caves | Entered Factory 12825 | -4/Factory | Accompanied by 3 allies 12825 | -4/Factory | Evolved 2 slots: Utility x2 12826 | -4/Factory | Loaded intel: 77 trap records 12828 | -4/Factory | Loaded intel: 53 interactive machine locations 12829 | -4/Factory | Loaded intel: 25 terminal locations 12830 | -4/Factory | Loaded intel: 4 garrison access locations 12853 | -4/Factory | Loaded intel: 8 recycling unit locations 12868 | -4/Factory | Learned location of Protoforge (-2) 12893 | -4/Factory | Identified exit to Upper Caves 12939 | -4/Factory | Fabricated Exp. Optical Array? 12941 | -4/Factory | Joined by bewildered Wizard 12941 | -4/Factory | Joined by bewildered Wizard 12941 | -4/Factory | Joined by bewildered Wizard 12962 | -4/Factory | Fabricated Adv. Surge Thruster? 13053 | -4/Factory | Joined by bewildered Wizard 13216 | -4/Factory | Found Exp. Terrain Scan Processor 13266 | -4/Factory | Joined by bewildered Wizard 13266 | -4/Factory | Joined by bewildered Wizard 13360 | -4/Factory | Joined by bewildered Wizard 13398 | -4/Factory | Joined by bewildered Wizard 13399 | -4/Factory | Joined by bewildered Wizard 13412 | -4/Factory | Entered Upper Caves 13412 | -4/Upper Caves | Accompanied by 3 allies 13458 | -4/Upper Caves | Joined by bewildered Wizard 13569 | -4/Upper Caves | Joined by bewildered Wizard 13598 | -4/Upper Caves | Learned location of 1 exit from Research 13610 | -4/Upper Caves | Discovered new exit (range 18) 13665 | -4/Upper Caves | Identified exit to Upper Caves 13666 | -4/Upper Caves | Entered another Upper Caves area 13666 | -4/Upper Caves | Accompanied by 5 allies 13672 | -4/Upper Caves | Discovered new exit (range 19) 13718 | -4/Upper Caves | Activated DRS Beacon 13757 | -4/Upper Caves | Lost 4 allies 13899 | -4/Upper Caves | Joined by bewildered Wizard 13900 | -4/Upper Caves | Joined by bewildered Wizard 14018 | -4/Upper Caves | Joined by bewildered Wizard 14019 | -4/Upper Caves | Joined by bewildered Wizard 14037 | -4/Upper Caves | Spotted B-86 Titan 14062 | -4/Upper Caves | Discovered new exit (range 17) 14070 | -4/Upper Caves | Identified exit to Warlord 14074 | -4/Upper Caves | Entered Warlord 14074 | -4/Warlord | Accompanied by 3 allies 14253 | -4/Warlord | Visited the Vortex Lab 14260 | -4/Warlord | Warlord's base attacked by MAIN.C 14287 | -4/Warlord | Found Prototype Processor 14287 | -4/Warlord | Identified Exp. Target Analyzer 14294 | -4/Warlord | Found Prototype Hackware 14294 | -4/Warlord | Identified Ghost Barrier 14308 | -4/Warlord | Rebuked by Warlord 14350 | -4/Warlord | Opened side exit 14362 | -4/Warlord | Discovered new exit (range 16) 14374 | -4/Warlord | Identified exit to Proximity Caves 14378 | -4/Warlord | Entered Proximity Caves 14378 | -3/Proximity Caves | Accompanied by 1 ally 14410 | -3/Proximity Caves | Attracted the attention of an 0b10 checkpoint 14425 | -3/Proximity Caves | Spotted B-86 Titan 14443 | -3/Proximity Caves | Joined by bewildered Wizard 14444 | -3/Proximity Caves | Joined by bewildered Wizard 14445 | -3/Proximity Caves | Joined by bewildered Wizard 14611 | -3/Proximity Caves | Discovered new exit (range 20) 14615 | -3/Proximity Caves | Identified exit to Research 14624 | -3/Proximity Caves | Entered Research 14624 | -3/Research | Accompanied by 2 allies 14624 | -3/Research | Evolved 2 slots: Utility x2 14625 | -3/Research | Identified exit to Armory 14626 | -3/Research | Identified exit to Quarantine 14645 | -3/Research | Watched by a mysterious "MATRIX" hacker 14645 | -3/Research | Central database locked down 14672 | -3/Research | Joined by bewildered Wizard 14673 | -3/Research | Joined by bewildered Wizard 14688 | -3/Research | Found Prototype Hackware 14688 | -3/Research | Identified Exp. System Shield 14689 | -3/Research | Found Exp. System Shield 14691 | -3/Research | Found Exp. System Shield 14693 | -3/Research | Found Exp. System Shield 14695 | -3/Research | Found Exp. System Shield 14735 | -3/Research | Discovered exit to Quarantine (range 16) 14774 | -3/Research | Joined by bewildered Wizard 14774 | -3/Research | Joined by bewildered Wizard 14800 | -3/Research | Joined by bewildered Wizard 14811 | -3/Research | Entered Quarantine 14811 | -3/Quarantine | Accompanied by 3 allies 14818 | -3/Quarantine | Found Alien Artifact 14818 | -3/Quarantine | Identified Subatomic Replicator 14823 | -3/Quarantine | Used Subatomic Replicator to replicate Amulet of Y3-NDR 14837 | -3/Quarantine | Identified exit to Research 14853 | -3/Quarantine | Found Alien Slashing Weapon 14853 | -3/Quarantine | Identified Sigix Broadsword 14877 | -3/Quarantine | Found Sigix Corpse 14883 | -3/Quarantine | Found Sigix Corpse 14918 | -3/Quarantine | Garrison activated, responded to threat 14990 | -3/Quarantine | Met incapacitated Sigix Warrior 14990 | -3/Quarantine | Lockdown squad dispatched 14991 | -3/Quarantine | Acquired the access code to the Sigix quarantine chamber 14992 | -3/Quarantine | Unlocked Sigix quarantine chamber 14994 | -3/Quarantine | Found Sigix Containment Pod 15006 | -3/Quarantine | Spotted Lightning 15006 | -3/Quarantine | Spotted Lightning 15047 | -3/Quarantine | Found Alien Artifact 15047 | -3/Quarantine | Identified Core Reset Matrix 15047 | -3/Quarantine | Identified Transdimensional Reconstructor 15047 | -3/Quarantine | Used Core Reset Matrix 15051 | -3/Quarantine | Sensed 4 artifacts in vicinity 15068 | -3/Quarantine | Warped through subspace 15090 | -3/Quarantine | Discovered exit to Research (range 3) 15090 | -3/Quarantine | Entered Research 15090 | -2/Research | Evolved 2 slots: Utility x2 15235 | -2/Research | Joined by bewildered Wizard 15235 | -2/Research | Joined by bewildered Wizard 15236 | -2/Research | Joined by bewildered Wizard 15269 | -2/Research | Joined by bewildered Wizard 15288 | -2/Research | Joined by bewildered Wizard 15315 | -2/Research | Discovered new exit (range 14) 15332 | -2/Research | Identified exit to Testing 15333 | -2/Research | Entered Testing 15341 | -2/Testing | Protovariant out of control (PG-7ONOV3ZQBB) 15341 | -2/Testing | Unleashed a protovariant (PG-7ONOV3ZQBB) 15341 | -2/Testing | Identified exit to Access 15363 | -2/Testing | Lost 3 allies 15367 | -2/Testing | Spotted Alpha 7 15466 | -2/Testing | Spotted Fortress 15490 | -2/Testing | Discovered new exit (range 5) 15490 | -2/Testing | Discovered new exit (range 6) 15491 | -2/Testing | Identified exit to Section 7 15492 | -2/Testing | Identified exit to Protoforge 15492 | -2/Testing | Entered Protoforge 15493 | -2/Protoforge | Sensed 2 artifacts in vicinity 15561 | -2/Protoforge | Central database locked down 15712 | -2/Protoforge | Superfortress began startup sequence 15727 | -2/Protoforge | Spotted B-90 Cyclops 15751 | -2/Protoforge | Spotted Hotshot 15751 | -2/Protoforge | Spotted Hotshot 15751 | -2/Protoforge | Spotted Hotshot 15752 | -2/Protoforge | Spotted Overlord 15771 | -2/Protoforge | Spotted Hotshot 15802 | -2/Protoforge | Targeted by mysterious "MATRIX" hacker 15803 | -2/Protoforge | Spotted Hotshot 15820 | -2/Protoforge | Spotted Hotshot 15821 | -2/Protoforge | Spotted Hotshot 15823 | -2/Protoforge | Spotted Hotshot 15830 | -2/Protoforge | System corruption reached 10% 15838 | -2/Protoforge | Core integrity fell below 50% 15842 | -2/Protoforge | Core integrity fell below 20% 15855 | -2/Protoforge | Spotted V643-b 15855 | -2/Protoforge | Spotted V017-b 15870 | -2/Protoforge | Lost 7 parts (1p2n4u) 15878 | -2/Protoforge | Found Prototype Piercing Weapon 15878 | -2/Protoforge | Identified Exp. Jetlance 15880 | -2/Protoforge | Found Prototype Energy Gun 15880 | -2/Protoforge | Identified Cep. Variable Chargecaster 15884 | -2/Protoforge | Found Prototype Energy Gun 15884 | -2/Protoforge | Identified Cep. Lightning Penetrator 15886 | -2/Protoforge | Destroyed by P-80 Master with Gamma Rifle Last Messages --------------- 15872_ ALERT: Potential suspicious activity detected, Programmers report to Protoforge Zone 9J. 15873_ Research Cell breached. 15878_ Acquired Prototype Piercing Weapon. 15878_ Identified Exp. Jetlance. 15878_ Faulty integration triggers meltdown. 15878_ Ghost Barrier damaged (-3). 15878_ Exp. Terrain Scan Processor damaged (-11). 15880_ Acquired Prototype Energy Gun. 15880_ Identified Cep. Variable Chargecaster. 15882_ Dropped Power Sword. 15884_ Acquired Prototype Energy Gun. 15884_ Identified Cep. Lightning Penetrator. 15884_ Faulty integration triggers meltdown. 15884_ Adv. Hacking Suite damaged (-2). 15884_ Cep. Variable Chargecaster damaged (-48). 15884_ Exp. System Shield damaged (-2). 15885_ Dropped Sigix Containment Pod. Map ----- +----------------------------------------------------+ | ?????????????????????????????????????????????????? | | ?????????????????????????????????????????????????? | | ?????????????????????????????????????????????????? | | ?????????????????????????????????????????????????? | | ?????????????????????????????????????????????????? | | ?????????????????????????????????????????????????? | | ?????????????????????????????????????????????????? | | ?????????????????????????????????????????????????? | | ?????????????????????????????????????????????????? | | ?????????????????????????????????????????????????? | | ?????????????????????????????????????????????????? | | ?????????????????????????????????????????????????? | | ???? ??????????????????????????????????????????? | | ???? ??????????????????????????????????????????? | | ???# ??????????????????????????????????????????? | | ???# ??????????????????????????????????????????? | | ???# ??????????????????????????????????????????? | | ???# ??????????????????????????????????????????? | | ???# #?????????????????????????????????????????? | | ???# #?????????????????????????????????????????? | | ???# #?????????????????????????????????????????? | | ???# #?????????????????????????????????????????? | | ???# #?????????????????????????????????????????? | | ???# #???????????????###############???????????? | | ???# #???????????????#"""""""""""""#???????????? | | ???# #???????????????#"@/[ [[ ][ "#???????????? | | ???# #???????????????#" p]/[/[]/]"#???????????? | | ???# #???????????????#####p"""""""##???????????? | | ???# #???????????????????" "#???????????? | | ???# #?????????????????#"" "#???????????? | | ???# ################### ""#???????????? | | ???# """"#???????????? | | ???# """"#???????????? | | ???# #########++######## ""#???????????? | | ???# #??????" ???# "#???????????? | | ???# #?????#" " ##???????????? | | ???# #?????#" " " " ""????????????? | | ???# #?????#"""""""# " "?????????????? | | ???# #?????#########? ####""""""#?????????????? | | ???# #???????????????###???????????????????????? | | ???# #?????????????????????????????????????????? | | ???# #?????????????????????????????????????????? | | ???# #?????????????????????????????????????????? | | #### #?????????????????????????????????????????? | | #?????????????????????????????????????????? | | #?????????????????????????????????????????? | | #?????????????????????????????????????????? | | ########?????????????????????????????????????????? | | #????????????????????????????????????????????????? | | #????????????????????????????????????????????????? | +----------------------------------------------------+ Best States ------------- Heat Dissipation 101 Energy Generation 25 Energy Capacity 600 Matter Stores 300 Matter Capacity 300 Sight Range 22 Robot Scan Range 16 Terrain Scan Range 20 Terrain Scan Density 1010 ECM Strength 1 Additional Mass Support 12 Armor Coverage 100 Evasion (%) 65 Recoil Reduction 2 Offensive Hacking 81 Defensive Hacking 80 Item Schematics ----------------- None Robot Schematics ------------------ None Fabricated ------------ Exp. Optical Array | x1 | -4/Factory Adv. Surge Thruster | x2 | -4/Factory Repaired ---------- Nothing Studied --------- Adv. Surge Thruster | -2/Protoforge | Hacked Lgt. Particle Reactor | -2/Protoforge | Hacked Alien Tech Used ----------------- Integrated Dissipator Subatomic Replicator Sigix Broadsword Core Reset Matrix Transdimensional Reconstructor Achievements -------------- Ponder That! Rampage Rodney's Helpers Challenges ------------ None Game ------ Seed ThrusterBottomlessSteel Manual? 0 Play Time 03:00:41 Cumulative 235.6 hours Start 2026.08.09 @ 23:15:57 End 2026.08.10 @ 14:00:41 Sessions 4 Manual Loads 0 Difficulty Rogue Special Mode None Game No. 136 Rogue 136 Adventurer 0 Explorer 0 Win Type - Total 5 Types 5/0/0/0/0/0/0/0/0/0 Lore% 79 Gallery% 68 Achievement% 59 Wizard Run 0 Options --------- Layout 1 ASCII 0 Keyboard 0 Movement Numpad Keybinds 0 Fullscreen 1 Font 24/Smallcaps Map View 50x35 Zoom Use 0% Tactical HUD 1 Map Filters NONE Filters NONE Steam 1 RUN: 5c9a8946-fb52-409f-841b-8b03b0ca7509